bitfinex/quotes_BTCUSD_20250716
["timestamp","ask_amount","ask_price","bid_price","bid_amount"]
[1752689041764,1.02086154,119040.0,119030.0,0.15104]
[1752689042060,0.23034856,119040.0,119030.0,0.001]
[1752689042284,1.03540239,119040.0,119030.0,0.001]
[1752689042729,1.18516239,119040.0,119030.0,0.001]
[1752689043190,0.78068446,119040.0,119030.0,0.001]
[1752689043411,0.39464941,119040.0,119030.0,0.001]
[1752689043676,0.78068446,119040.0,119030.0,0.001]
[1752689045051,0.39464941,119040.0,119030.0,0.001]
[1752689045293,0.24488941,119040.0,119030.0,0.001]
[1752689045512,0.18484856,119040.0,119030.0,0.001]
[1752689045955,0.57088361,119040.0,119030.0,0.001]
[1752689046179,0.57088361,119040.0,119030.0,0.423035]
[1752689046391,0.57088361,119040.0,119030.0,0.672803]
[1752689047072,0.57088361,119040.0,119030.0,0.341]
[1752689047207,0.56765361,119040.0,119030.0,0.973701]
[1752689047645,0.17947856,119040.0,119030.0,0.973701]
[1752689048267,0.56765361,119040.0,119030.0,0.973701]
[1752689049741,0.18161856,119040.0,119030.0,0.973701]
[1752689050158,0.56765361,119040.0,119030.0,0.973701]
[1752689050364,0.17947856,119040.0,119030.0,1.23864731]
[1752689050576,0.18787881,119040.0,119030.0,1.25964731]
[1752689050774,0.19627934,119040.0,119030.0,1.2764493]
[1752689051005,0.01980029,119040.0,119030.0,1.28485011]
[1752689051216,0.003,119040.0,119030.0,5.68531985]
[1752689051496,0.01140011,119040.0,119030.0,5.68531985]
[1752689051911,0.02820026,119040.0,119030.0,4.33149785]
[1752689052141,0.02820026,119040.0,119030.0,4.20115485]
[1752689052366,0.03360065,119040.0,119030.0,3.51624785]
[1752689052571,0.03360065,119040.0,119030.0,3.53737085]
[1752689052773,0.03460065,119040.0,119030.0,4.06516385]
[1752689052976,0.01780001,119040.0,119030.0,4.10000985]
[1752689053182,0.02620026,119040.0,119030.0,4.70172385]
[1752689053390,0.03460065,119040.0,119030.0,4.66405485]
[1752689053600,0.03460065,119040.0,119030.0,4.32115385]
[1752689053804,0.03460065,119040.0,119030.0,4.11067885]
[1752689053946,0.03460065,119040.0,119030.0,3.97088085]
[1752689054298,0.02620026,119040.0,119030.0,4.17932685]
[1752689054596,0.03460065,119040.0,119030.0,4.17932685]
[1752689054812,0.003,119050.0,119040.0,0.2374115]
[1752689055021,0.02819842,119050.0,119040.0,4.43804878]
[1752689055230,0.0197988,119050.0,119040.0,4.43804878]
[1752689055441,0.20459474,119050.0,119040.0,4.12107481]
[1752689055644,0.20459474,119050.0,119040.0,2.51123706]
[1752689056093,0.20459474,119050.0,119040.0,0.47730206]
[1752689056310,0.20759474,119050.0,119040.0,2.43425024]
[1752689056525,0.20759474,119050.0,119040.0,2.42585006]
[1752689056745,0.19919541,119050.0,119040.0,2.07228306]
[1752689056976,0.19919541,119050.0,119040.0,2.08068324]
[1752689057186,0.19919541,119050.0,119040.0,2.68145928]
[1752689057432,0.19919541,119050.0,119040.0,2.64545928]
[1752689057741,0.19919541,119050.0,119040.0,2.36072824]
[1752689057954,0.19919541,119050.0,119040.0,2.01709988]
[1752689058163,0.19919541,119050.0,119040.0,2.03828288]
[1752689058587,0.19919541,119050.0,119040.0,2.00239413]
[1752689059379,0.19919541,119050.0,119040.0,0.86213613]
[1752689059618,0.58523046,119050.0,119040.0,0.86213613]
[1752689059831,0.19919541,119050.0,119040.0,0.86213613]
[1752689060256,0.19919541,119050.0,119040.0,2.89130413]
[1752689060472,0.006,119050.0,119040.0,3.10191117]
[1752689060693,0.02279901,119050.0,119040.0,3.35376117]
[1752689060905,0.02279873,119050.0,119040.0,3.35366017]
[1752689061119,0.01439926,119050.0,119040.0,4.10246617]
[1752689061339,0.03119842,119050.0,119040.0,5.49284717]
[1752689061562,0.03119842,119050.0,119040.0,4.60736317]
[1752689061781,0.03959775,119050.0,119040.0,4.91588017]
[1752689062006,0.27636741,119070.0,119060.0,0.17638157]
[1752689062235,0.27636741,119070.0,119060.0,1.95559285]
[1752689062494,0.66754246,119070.0,119060.0,0.23673028]
[1752689062709,0.66754246,119070.0,119060.0,0.23459028]
[1752689063133,0.66754246,119070.0,119050.0,0.34]
[1752689063134,0.16798252,119060.0,119050.0,0.34]
[1752689063374,0.55915757,119060.0,119050.0,0.83718332]
[1752689063587,0.19562252,119060.0,119050.0,0.83718332]
[1752689063797,0.01679775,119060.0,119050.0,1.02411926]
[1752689064003,0.20157788,119060.0,119050.0,1.01571972]
[1752689064214,0.19317932,119060.0,119050.0,1.02411941]
[1752689064420,0.57921437,119060.0,119050.0,1.02411941]
[1752689064629,0.57921437,119060.0,119050.0,1.03251895]
[1752689064852,0.11879612,119070.0,119060.0,2.84191704]
[1752689065081,0.11879591,119070.0,119060.0,4.72216232]
[1752689065289,0.51358508,119070.0,119060.0,4.41297532]
[1752689065516,0.51998321,119070.0,119060.0,4.41297532]
[1752689065805,0.50318702,119070.0,119060.0,4.41297532]
[1752689066020,0.1251939,119070.0,119060.0,5.32824932]
[1752689066252,0.51998307,119070.0,119060.0,4.98295332]
[1752689066466,0.51998307,119070.0,119060.0,3.70290832]
[1752689066685,0.14199053,119070.0,119060.0,3.61011532]
[1752689066903,0.5367797,119070.0,119060.0,3.34992532]
[1752689067120,0.3015616,119070.0,119060.0,2.89090285]
[1752689067356,0.68391993,119070.0,119060.0,0.51905328]
[1752689067596,0.68391993,119070.0,119060.0,0.61400197]
[1752689067597,0.28685519,119070.0,119060.0,0.61400197]
[1752689067812,0.67247165,119070.0,119060.0,0.4376204]
[1752689068022,0.67247165,119070.0,119060.0,0.28018128]
[1752689068231,0.67247165,119070.0,119060.0,0.60560292]
[1752689068446,0.67247165,119070.0,119060.0,0.61300197]
[1752689068668,0.28685519,119070.0,119060.0,0.61300197]
[1752689068877,0.67877978,119070.0,119060.0,0.63179972]
[1752689069301,0.29316332,119070.0,119060.0,0.64019842]
[1752689069512,0.29316332,119070.0,119060.0,0.63179972]
[1752689069962,0.1251949,119070.0,119060.0,0.64019835]
[1752689070183,0.12519433,119070.0,119060.0,0.66611835]
[1752689070847,0.10839792,119070.0,119060.0,5.47458735]
[1752689071076,0.11679577,119070.0,119060.0,0.49688735]
[1752689071302,0.11679577,119070.0,119060.0,5.21661335]
[1752689071729,0.11679577,119070.0,119060.0,5.23118835]
[1752689071730,0.1,119070.0,119060.0,5.23118835]
[1752689072198,0.09160539,119070.0,119060.0,5.23118835]
[1752689072429,0.09160539,119070.0,119060.0,5.38118835]
[1752689072669,0.05382965,119070.0,119060.0,5.76680481]
[1752689072896,0.04543504,119070.0,119060.0,5.98688735]
[1752689073116,0.04543504,119070.0,119060.0,6.37250381]
[1752689073117,0.01605391,119070.0,119060.0,6.37250381]
[1752689073339,0.0076593,119070.0,119060.0,5.98688735]
[1752689073559,0.0076593,119070.0,119060.0,5.98756735]
[1752689073778,0.003,119090.0,119080.0,0.5746466]
[1752689074009,0.003,119090.0,119080.0,5.81237688]
[1752689074224,0.0004,119100.0,119090.0,0.53313038]
[1752689074443,0.0004,119100.0,119090.0,5.57989038]
[1752689075122,0.0004,119100.0,119090.0,5.66540066]
[1752689075547,0.00052721,119100.0,119090.0,5.69059666]
[1752689076202,0.003,119110.0,119100.0,0.59319588]
[1752689076426,0.003,119110.0,119100.0,5.83456616]
[1752689076869,0.003,119110.0,119100.0,5.84317845]
[1752689077091,0.01139496,119110.0,119100.0,4.63824851]
[1752689077315,0.003,119110.0,119100.0,4.63824851]
[1752689077530,0.01139496,119110.0,119100.0,4.63824851]
[1752689077996,0.003,119110.0,119100.0,4.46445851]
[1752689078214,0.003,119110.0,119100.0,3.36397751]
[1752689078889,0.003,119110.0,119100.0,3.38277751]
[1752689079118,0.003,119110.0,119100.0,5.86619951]
[1752689079763,0.0315783,119120.0,119110.0,0.53309816]
[1752689079978,0.00848426,119120.0,119110.0,3.35920354]
[1752689080249,0.01478859,119120.0,119110.0,3.35920354]
[1752689080471,0.03697547,119130.0,119120.0,0.19308195]
[1752689080684,0.02858135,119130.0,119120.0,3.73930363]
[1752689080901,0.0369754,119130.0,119120.0,3.73930363]
[1752689081122,0.01179362,119130.0,119120.0,4.02131263]
[1752689081341,0.02018745,119130.0,119120.0,5.78272663]
[1752689081560,0.03697561,119130.0,119120.0,5.77960663]
[1752689081782,0.03697547,119130.0,119120.0,5.77960663]
[1752689082001,0.20694929,119130.0,119120.0,2.55196837]
[1752689082210,0.21534341,119130.0,119120.0,2.56036284]
[1752689082421,0.04106597,119130.0,119120.0,4.25004084]
[1752689082636,0.04946016,119130.0,119120.0,4.19887224]
[1752689082848,0.04946016,119130.0,119120.0,4.19047784]
[1752689083072,0.04446016,119130.0,119120.0,4.19047784]
[1752689083282,0.21411213,119130.0,119120.0,0.82031428]
[1752689083492,0.2278027,119110.0,119100.0,0.02574106]
[1752689083699,0.2330827,119110.0,119100.0,0.61125134]
[1752689083911,0.61869916,119110.0,119100.0,0.23631028]
[1752689084129,0.1899827,119110.0,119100.0,2.30790028]
[1752689084347,0.1899827,119110.0,119100.0,2.98981428]
[1752689084565,0.1899827,119110.0,119100.0,3.13463239]
[1752689084771,0.1867527,119110.0,119100.0,5.03365862]
[1752689085000,0.1867527,119110.0,119100.0,4.4806778]
[1752689085237,0.95593562,119110.0,119100.0,3.84919578]
[1752689085449,0.95798562,119110.0,119100.0,1.75759562]
[1752689085668,0.94959038,119110.0,119100.0,1.60688437]
[1752689085889,0.94959038,119110.0,119100.0,1.17621678]
[1752689086348,0.79007319,119110.0,119100.0,0.80705191]
[1752689086595,0.78802319,119110.0,119100.0,5.01194172]
[1752689086824,0.77962795,119110.0,119100.0,5.03404172]
[1752689087045,0.17953514,119120.0,119110.0,0.18470285]
[1752689087046,0.19308167,119120.0,119110.0,0.18470285]
[1752689087266,0.20147649,119120.0,119110.0,3.8157143]
[1752689087484,0.20147649,119120.0,119110.0,3.80877713]
[1752689087702,0.20147649,119120.0,119110.0,3.8171723]
[1752689087949,0.01678936,119120.0,119110.0,3.80877713]
[1752689088163,0.41080015,119120.0,119110.0,3.98479337]
[1752689088378,0.4024054,119120.0,119110.0,0.63230347]
[1752689088592,0.4024054,119120.0,119110.0,4.24875747]
[1752689088808,0.41080001,119120.0,119110.0,4.24875747]
[1752689089223,0.41080008,119120.0,119110.0,0.62910347]
[1752689089437,0.02518362,119120.0,119110.0,3.52594047]
[1752689089649,0.41080008,119120.0,119110.0,3.52594047]
[1752689089834,0.57869799,119120.0,119110.0,3.51754537]
[1752689090045,0.58397848,119120.0,119110.0,2.79870982]
[1752689090267,0.19836188,119120.0,119110.0,1.97659758]
[1752689090484,0.59237316,119120.0,119110.0,1.97659765]
[1752689090702,0.42447525,119120.0,119110.0,1.99338799]
[1752689090910,0.58914316,119120.0,119110.0,1.97659765]
[1752689091126,0.58914316,119120.0,119110.0,1.99338813]
[1752689091346,0.42964014,119120.0,119110.0,1.99338813]
[1752689091568,0.41285043,119120.0,119110.0,1.9933877]
[1752689091788,0.40445533,119120.0,119110.0,1.9933877]
[1752689091995,0.38561646,119120.0,119110.0,5.8336787]
[1752689092214,0.02518192,119130.0,119120.0,0.19308174]
[1752689092433,0.42758619,119130.0,119120.0,3.51407902]
[1752689092659,0.59547051,119130.0,119120.0,3.51617916]
[1752689092930,0.59547051,119130.0,119120.0,3.52457363]
[1752689093147,0.57868264,119130.0,119120.0,2.99783362]
[1752689093367,0.57233859,119130.0,119120.0,2.99783376]
[1752689093592,0.40240405,119130.0,119120.0,5.44916145]
[1752689093813,0.58707604,119130.0,119120.0,5.44076705]
[1752689094035,0.58073235,119130.0,119120.0,2.09057544]
[1752689094254,0.57233845,119130.0,119120.0,0.80515601]
[1752689094466,0.57556845,119130.0,119120.0,0.81355062]
[1752689094687,0.57556845,119130.0,119120.0,0.81355076]
[1752689094910,0.18995199,119130.0,119120.0,0.83034005]
[1752689095136,0.41284846,119130.0,119120.0,4.79307352]
[1752689095344,0.58912647,119130.0,119120.0,3.47372752]
[1752689095557,0.58912647,119130.0,119120.0,3.27118605]
[1752689095766,0.58273264,119130.0,119120.0,3.21122405]
[1752689095977,0.19711618,119130.0,119120.0,0.43237244]
[1752689096195,0.57433859,119130.0,119120.0,1.75461005]
[1752689096414,0.18872213,119130.0,119120.0,1.75461005]
[1752689096626,0.57433859,119130.0,119120.0,1.76300459]
[1752689097057,0.57228859,119130.0,119120.0,3.91088024]
[1752689097274,0.57433859,119130.0,119120.0,1.95923694]
[1752689097501,0.57433859,119130.0,119120.0,1.03900962]
[1752689098169,0.01244355,119130.0,119120.0,3.62383109]
[1752689098386,0.41279774,119130.0,119120.0,3.62383109]
[1752689098602,0.42119186,119130.0,119120.0,3.62383109]
[1752689098835,0.42119186,119130.0,119120.0,3.63542549]
[1752689098836,0.01878731,119130.0,119120.0,3.63542549]
[1752689099073,0.02718121,119130.0,119120.0,3.63542549]
[1752689099332,0.002,119130.0,119120.0,4.92767049]
[1752689099552,0.00055133,119140.0,119130.0,0.72296553]
[1752689099779,0.00894418,119140.0,119130.0,5.29013312]
[1752689100001,0.00055133,119140.0,119130.0,3.51781181]
[1752689100222,0.0173371,119140.0,119130.0,3.86662281]
[1752689100462,0.00055133,119140.0,119130.0,5.84056481]
[1752689100704,0.00894418,119140.0,119130.0,5.84056481]
[1752689100925,0.00894418,119140.0,119130.0,5.39840381]
[1752689101136,0.00894418,119140.0,119130.0,5.53372381]
[1752689101350,0.02573023,119140.0,119130.0,4.42919781]
[1752689101599,0.00894418,119140.0,119130.0,5.65851881]
[1752689101784,0.01733717,119140.0,119130.0,5.81858281]
[1752689102003,0.01833717,119140.0,119130.0,5.84556481]
[1752689102220,0.01833717,119140.0,119130.0,5.83357912]
[1752689102440,0.20299414,119140.0,119130.0,4.30470827]
[1752689102656,0.61820441,119140.0,119130.0,0.60717928]
[1752689102876,0.61820441,119140.0,119130.0,0.43051028]
[1752689103143,0.61820441,119140.0,119130.0,0.58179028]
[1752689103367,0.23258795,119140.0,119130.0,0.58179028]
[1752689103578,0.61820441,119140.0,119130.0,0.58179028]
[1752689104467,0.61820441,119140.0,119130.0,0.59018447]
[1752689104684,0.608811,119140.0,119130.0,0.79930028]
[1752689104896,0.608811,119140.0,119130.0,0.57679028]
[1752689105114,0.22319454,119140.0,119130.0,0.42851028]
[1752689105330,0.608811,119140.0,119130.0,0.57663028]
[1752689105547,0.608811,119140.0,119130.0,0.57763028]
[1752689105789,0.759851,119140.0,119130.0,0.001]
[1752689106006,0.77439185,119140.0,119130.0,0.001]
[1752689107565,0.21091872,119130.0,119120.0,0.34]
[1752689107787,0.2252027,119110.0,119100.0,0.02861109]
[1752689108022,0.76693916,119110.0,119100.0,0.45412137]
[1752689109138,0.76693916,119110.0,119100.0,0.45512137]
[1752689109378,0.61609916,119110.0,119100.0,0.45512137]
[1752689109593,0.72627916,119110.0,119100.0,0.45512137]
[1752689110931,0.3406627,119110.0,119100.0,0.45512137]
[1752689111151,0.1899827,119110.0,119100.0,0.78216378]
[1752689111365,0.18158746,119110.0,119100.0,0.78216378]
[1752689111577,0.56720392,119110.0,119100.0,0.78216378]
[1752689112217,0.56720392,119110.0,119100.0,0.79055987]
[1752689112475,0.01679069,119110.0,119100.0,2.25542075]
[1752689112688,0.1847027,119110.0,119100.0,2.21792892]
[1752689112907,0.57031916,119110.0,119100.0,2.23472103]
[1752689113145,0.56397392,119110.0,119100.0,1.79332828]
[1752689113377,0.56720392,119110.0,119100.0,1.96965069]
[1752689113616,0.55880847,119110.0,119100.0,0.58225028]
[1752689113850,0.55880847,119110.0,119100.0,1.33864428]
[1752689114281,0.55880847,119110.0,119100.0,1.33654428]
[1752689114628,0.55880847,119110.0,119100.0,1.12436828]
[1752689114836,0.55880847,119110.0,119100.0,0.58015028]
[1752689115232,0.55880847,119110.0,119100.0,0.82608728]
[1752689115462,0.55880847,119110.0,119100.0,0.45409007]
[1752689115676,0.70924847,119110.0,119100.0,0.45409007]
[1752689115908,0.70924847,119110.0,119100.0,0.72659307]
[1752689116304,0.70396847,119110.0,119100.0,0.85587707]
[1752689116562,0.70396847,119110.0,119100.0,0.93422048]
[1752689116771,0.70593847,119110.0,119100.0,0.76629437]
[1752689116995,0.70909847,119110.0,119100.0,0.60453007]
[1752689117209,0.32348201,119110.0,119100.0,0.74867307]
[1752689117422,0.32348201,119110.0,119100.0,0.92499548]
[1752689117623,0.70909847,119110.0,119100.0,0.75706937]
[1752689117837,0.32348201,119110.0,119100.0,0.76126807]
[1752689118052,0.70909847,119110.0,119100.0,0.76126807]
[1752689118265,0.70909847,119110.0,119100.0,0.93759048]
[1752689118882,0.32348201,119110.0,119100.0,0.76966437]
[1752689119305,0.70909847,119110.0,119100.0,0.76966437]
[1752689119519,0.70909847,119110.0,119100.0,0.78085248]
[1752689119750,0.16988201,119110.0,119100.0,2.29017357]
[1752689119958,0.70573847,119110.0,119100.0,2.29017357]
[1752689120191,0.34530845,119110.0,119100.0,2.28177748]
[1752689120401,0.7225296,119110.0,119100.0,2.29017371]
[1752689120620,0.55461759,119110.0,119100.0,2.29856987]
[1752689120872,0.00839503,119110.0,119100.0,5.69419417]
[1752689121109,0.00839503,119110.0,119100.0,2.75486117]
[1752689121332,0.46714382,119130.0,119110.0,0.53309773]
[1752689121549,0.57869869,119120.0,119110.0,0.5107]
[1752689121767,0.57227401,119120.0,119110.0,0.57764028]
[1752689121987,0.18665755,119120.0,119110.0,1.56837027]
[1752689122409,0.18665755,119120.0,119110.0,1.57676565]
[1752689122410,0.57227401,119120.0,119110.0,1.57676565]
[1752689122627,0.57227401,119120.0,119110.0,1.58516096]
[1752689123044,0.57227401,119120.0,119110.0,1.56837027]
[1752689123045,0.56387926,119120.0,119110.0,1.56837027]
[1752689123222,0.56387926,119120.0,119110.0,1.57676558]
[1752689123462,0.41277043,119120.0,119110.0,1.58516075]
[1752689123678,0.19505188,119120.0,119110.0,1.58516075]
[1752689123910,0.01678873,119120.0,119110.0,5.83188885]
[1752689124130,0.03357802,119120.0,119110.0,5.39945785]
[1752689124340,0.00839426,119120.0,119110.0,5.19132885]
[1752689124561,0.59699752,119140.0,119110.0,5.14935229]
[1752689124787,0.712071,119140.0,119130.0,0.16788382]
[1752689125005,0.02518178,119130.0,119120.0,0.57744174]
[1752689125265,0.01678745,119130.0,119120.0,2.98967402]
[1752689125482,0.01678745,119130.0,119120.0,2.99180402]
[1752689125919,0.02518142,119130.0,119120.0,2.99180402]
[1752689126136,0.01678745,119130.0,119120.0,2.99180402]
[1752689126366,0.71207121,119140.0,119120.0,5.01432192]
[1752689126585,0.0173371,119140.0,119130.0,3.65283281]
[1752689126797,0.04251656,119140.0,119130.0,3.60541581]
[1752689127004,0.04251656,119140.0,119130.0,3.52793181]
[1752689127235,0.01733724,119140.0,119130.0,2.98878781]
[1752689127450,0.02573044,119140.0,119130.0,2.98878781]
[1752689127896,0.01733724,119140.0,119130.0,2.98878781]
[1752689128114,0.02573058,119140.0,119130.0,2.98878781]
[1752689128334,0.01733731,119140.0,119130.0,4.11126581]
[1752689128585,0.00055133,119140.0,119130.0,4.11126581]
[1752689128794,0.01094418,119140.0,119130.0,4.11126581]
[1752689129226,0.00255133,119140.0,119130.0,5.46183281]
[1752689129737,0.01094418,119140.0,119130.0,4.15284481]
[1752689129990,0.00894418,119140.0,119130.0,4.15284481]
[1752689130244,0.00055133,119140.0,119130.0,4.04122581]
[1752689130496,0.01733724,119140.0,119130.0,3.79531981]
[1752689130735,0.01733717,119140.0,119130.0,3.79531981]
[1752689130937,0.01733717,119140.0,119130.0,3.61660081]
[1752689131147,0.0173371,119140.0,119130.0,3.57929781]
[1752689131370,0.0173371,119140.0,119130.0,4.16374781]
[1752689131616,0.00055133,119140.0,119130.0,4.16374781]
[1752689132334,0.00055133,119140.0,119130.0,5.81650581]
[1752689134186,0.00055133,119140.0,119130.0,5.81550581]
[1752689134652,0.00055133,119140.0,119130.0,5.40703581]
[1752689134875,0.00055133,119140.0,119130.0,5.15480481]
[1752689135357,0.00055133,119140.0,119130.0,5.81850581]
[1752689135806,0.18776993,119170.0,119150.0,0.19302299]
[1752689136022,0.2296552,119160.0,119150.0,0.42551028]
[1752689136202,0.2296552,119160.0,119150.0,1.43115028]
[1752689136458,0.61527166,119160.0,119150.0,0.42551028]
[1752689136690,0.17624828,119150.0,119140.0,0.003]
[1752689136919,0.23581913,119150.0,119140.0,0.503]
[1752689137144,0.23581913,119150.0,119140.0,0.003]
[1752689137577,0.62143559,119150.0,119140.0,0.003]
[1752689137800,0.23581913,119150.0,119140.0,0.003]
[1752689138262,0.62143559,119150.0,119140.0,0.343]
[1752689138488,0.62143559,119150.0,119140.0,0.003]
[1752689138710,0.23581913,119150.0,119140.0,0.003]
[1752689139417,0.62343559,119150.0,119140.0,0.003]
[1752689139868,0.23781913,119150.0,119140.0,0.003]
[1752689140300,0.62343559,119150.0,119140.0,0.003]
[1752689140741,0.91953559,119150.0,119140.0,0.003]
[1752689141607,0.53391913,119150.0,119140.0,0.003]
[1752689142049,0.91953559,119150.0,119140.0,0.003]
[1752689142273,0.52777085,119150.0,119140.0,0.17086973]
[1752689142500,0.66559828,119150.0,119140.0,0.003]
[1752689142721,1.05121474,119150.0,119140.0,0.003]
[1752689142965,0.58979474,119150.0,119140.0,0.003]
[1752689143189,0.58979474,119150.0,119140.0,0.18765648]
[1752689143408,0.58577995,119150.0,119140.0,0.17926321]
[1752689143628,0.19778785,119150.0,119140.0,0.20444295]
[1752689143846,0.19778778,119150.0,119140.0,3.98502951]
[1752689144065,0.20302056,119150.0,119140.0,3.98712951]
[1752689144287,0.35714099,119150.0,119140.0,2.08723142]
[1752689144547,0.35714099,119150.0,119140.0,1.3079539]
[1752689144768,0.34874835,119150.0,119140.0,0.25781728]
[1752689144985,0.34874835,119150.0,119140.0,0.25571728]
[1752689144986,0.34035564,119150.0,119140.0,0.25571728]
[1752689145228,0.33835564,119150.0,119140.0,0.23722028]
[1752689145470,0.33835564,119150.0,119140.0,0.24661369]
[1752689145686,0.33835564,119150.0,119140.0,0.40609001]
[1752689145902,0.7239721,119150.0,119140.0,0.40609001]
[1752689146126,0.33835564,119150.0,119140.0,0.40609001]
[1752689146374,0.7239721,119150.0,119140.0,0.23822028]
[1752689147733,0.33835564,119150.0,119140.0,0.23822028]
[1752689147941,0.7240121,119150.0,119140.0,0.4818349]
[1752689148153,0.7240121,119150.0,119140.0,0.41658349]
[1752689148370,0.33815564,119150.0,119140.0,0.40819001]
[1752689148597,0.18704507,119150.0,119140.0,0.42497648]
[1752689148804,0.18391507,119150.0,119140.0,3.03927348]
[1752689149024,0.01875464,119150.0,119140.0,3.03927362]
[1752689149244,0.19230728,119150.0,119140.0,3.11615382]
[1752689149449,0.19230714,119150.0,119140.0,3.05454695]
[1752689149674,0.19230714,119150.0,119140.0,3.11472595]
[1752689149675,0.20069985,119150.0,119140.0,3.11472595]
[1752689149894,0.36855549,119150.0,119140.0,1.04155501]
[1752689150102,0.19222714,119150.0,119140.0,0.95073162]
[1752689150341,0.02714714,119150.0,119140.0,1.02647616]
[1752689150609,0.01875471,119150.0,119140.0,1.04326221]
[1752689150823,0.00321,119170.0,119160.0,0.53301706]
[1752689151039,0.1925327,119170.0,119160.0,2.8607472]
[1752689151250,0.75212717,119170.0,119160.0,0.79848083]
[1752689151516,0.19868282,119170.0,119160.0,0.83204813]
[1752689151735,0.21546528,119170.0,119160.0,0.81526483]
[1752689151962,0.38329324,119170.0,119160.0,0.81526483]
[1752689152185,0.59469086,119170.0,119160.0,0.81526483]
[1752689152399,0.42105928,119170.0,119160.0,0.84043992]
[1752689152611,0.002,119170.0,119160.0,0.84345992]
[1752689152834,0.0004,119180.0,119170.0,0.57240074]
[1752689153056,0.0005513,119180.0,119170.0,5.82863102]
[1752689153265,0.0034,119210.0,119200.0,0.55265216]
[1752689153494,0.0034,119210.0,119200.0,5.00092644]
[1752689153712,0.0034,119210.0,119200.0,5.8531091]
[1752689153945,0.0004,119220.0,119210.0,0.55263597]
[1752689154183,0.0004,119220.0,119210.0,5.73031766]
[1752689154184,0.00090424,119220.0,119210.0,5.73031766]
[1752689154432,0.0034,119230.0,119220.0,0.57231979]
[1752689154664,0.00355121,119230.0,119220.0,3.54633107]
[1752689154876,0.00355121,119230.0,119220.0,2.97374207]
[1752689155089,0.00355121,119230.0,119220.0,2.99891007]
[1752689155539,0.01193772,119230.0,119220.0,2.99891007]
[1752689155758,0.01193772,119230.0,119220.0,5.51695907]
[1752689155973,0.01193772,119230.0,119220.0,5.31407407]
[1752689156385,0.00355121,119230.0,119220.0,5.31407407]
[1752689156603,0.01193772,119230.0,119220.0,2.63182907]
[1752689156820,0.02032437,119230.0,119220.0,2.97189007]
[1752689157041,0.01193772,119230.0,119220.0,2.97189007]
[1752689157268,0.02032437,119230.0,119220.0,2.97189007]
[1752689157487,0.01193772,119230.0,119220.0,2.97189007]
[1752689157694,0.00355121,119230.0,119220.0,2.97189007]
[1752689157918,0.00355121,119230.0,119220.0,5.85535807]
[1752689159040,0.18425727,119250.0,119240.0,0.18450162]
[1752689159256,0.20941393,119250.0,119240.0,1.7977809]
[1752689159442,0.20102854,119250.0,119240.0,1.7977809]
[1752689159693,0.201027,119250.0,119240.0,1.7977809]
[1752689159912,0.01877043,119250.0,119240.0,5.83804401]
[1752689160132,0.01038518,119250.0,119240.0,5.81824401]
[1752689160343,0.02715638,119250.0,119240.0,3.63978006]
[1752689160560,0.002,119250.0,119240.0,1.58616201]
[1752689160789,0.002,119250.0,119240.0,1.58918201]
[1752689160996,0.002,119250.0,119240.0,5.83850401]
[1752689161422,0.02715617,119250.0,119240.0,2.43875601]
[1752689161639,0.01038518,119250.0,119240.0,2.43875601]
[1752689161859,0.004,119250.0,119240.0,4.71960101]
[1752689162105,0.02715568,119250.0,119240.0,4.57942701]
[1752689162318,0.57422261,119250.0,119240.0,0.53523528]
[1752689162537,0.59197346,119250.0,119240.0,0.7472006]
[1752689162772,0.59197346,119250.0,119240.0,0.7555869]
[1752689162773,0.206357,119250.0,119240.0,0.7555869]
[1752689162984,0.206357,119250.0,119240.0,0.76607306]
[1752689162985,0.203147,119250.0,119240.0,0.76607306]
[1752689163206,0.21153274,119250.0,119240.0,0.77445915]
[1752689163470,0.002,119250.0,119240.0,5.80952975]
[1752689163696,0.002,119250.0,119240.0,4.65554575]
[1752689163911,0.002,119250.0,119240.0,3.54738375]
[1752689164336,0.002,119250.0,119240.0,5.43441075]
[1752689164559,0.0004,119260.0,119250.0,0.53287126]
[1752689164782,0.0004,119260.0,119250.0,5.66450154]
[1752689164999,0.0004,119260.0,119250.0,4.51854854]
[1752689165220,0.0004,119260.0,119250.0,4.41981254]
[1752689165448,0.0004,119260.0,119250.0,5.66450154]
[1752689166106,0.0004,119260.0,119250.0,5.66750154]
[1752689166333,0.0004,119260.0,119250.0,6.36750154]
[1752689166588,0.002,119270.0,119260.0,0.53285508]
[1752689166814,0.0004,119280.0,119270.0,0.72363891]
[1752689167034,0.012,119290.0,119280.0,0.55342275]
[1752689167254,0.03729856,119290.0,119280.0,4.45627503]
[1752689167464,0.03729856,119290.0,119280.0,4.08615303]
[1752689167465,0.01215118,119290.0,119280.0,4.08615303]
[1752689167900,0.02053347,119290.0,119280.0,4.08917303]
[1752689168124,0.01215118,119290.0,119280.0,4.08917303]
[1752689168343,0.01215118,119290.0,119280.0,4.51468949]
[1752689168557,0.01215118,119290.0,119280.0,6.21484949]
[1752689168780,0.01215118,119290.0,119280.0,5.82923303]
[1752689169215,0.01215118,119290.0,119280.0,5.66335303]
[1752689169712,0.01215118,119290.0,119280.0,5.82895303]
[1752689170390,0.01215118,119290.0,119280.0,5.87895302]
[1752689170614,0.01215118,119290.0,119280.0,6.04896949]
[1752689170837,0.01215118,119290.0,119280.0,5.81735303]
[1752689171053,0.20495812,119290.0,119280.0,1.44798198]
[1752689171267,0.20495812,119290.0,119280.0,1.13030928]
[1752689171496,0.20495812,119290.0,119280.0,5.11530228]
[1752689171705,0.02891613,119290.0,119280.0,4.59713938]
[1752689172144,0.04568185,119290.0,119280.0,4.58037303]
[1752689172369,0.03729892,119290.0,119280.0,4.59713966]
[1752689172590,0.19657519,119290.0,119280.0,0.85868228]
[1752689172808,0.19869519,119290.0,119280.0,0.84038628]
[1752689173046,0.02891627,119290.0,119280.0,1.03320903]
[1752689173277,0.02891606,119290.0,119280.0,1.03622903]
[1752689173516,0.02891606,119290.0,119280.0,5.79221303]
[1752689173754,0.01215118,119290.0,119280.0,5.83161303]
[1752689174202,0.18846916,119310.0,119300.0,0.51602667]
[1752689174425,0.19381916,119310.0,119300.0,2.38118228]
[1752689174659,0.19381916,119310.0,119300.0,0.52895228]
[1752689175107,0.19381916,119310.0,119300.0,5.60369702]
[1752689175108,0.19063916,119310.0,119300.0,5.60369702]
[1752689175332,0.17008607,119330.0,119310.0,0.5243933]
[1752689175547,0.19891849,119320.0,119310.0,3.95734037]
[1752689175731,0.20113865,119320.0,119310.0,4.22319189]
[1752689175956,0.19492839,119320.0,119310.0,3.38155828]
[1752689176222,0.20426877,119320.0,119310.0,2.68068728]
[1752689176435,0.20426877,119320.0,119310.0,0.53852528]
[1752689176668,0.58988523,119320.0,119310.0,0.53852528]
[1752689176898,0.58988523,119320.0,119310.0,0.70804528]
[1752689177100,0.20726877,119320.0,119310.0,5.57178882]
[1752689177324,0.04485226,119320.0,119310.0,4.83915792]
[1752689177541,0.003,119320.0,119310.0,5.22791438]
[1752689177755,0.003,119320.0,119310.0,4.88189792]